Workbook

Sheet MSU
A1: Runkosarja TOP-30 | B1: Pekka Kujala | E1: 31.3.1964
B2: SUPERPESIS | E2: Runkosarja | I2: Kärkilyönnit (KL), pesänvälit | P2: Runkosarja TOP-30 | U2: Ylempi loppusarja | AB2: Ylempi loppusarja TOP-10 | AG2: Play off, voitot, voittoprosentti | AL2: Arvo-ottelut | AO2: Mitalit
B3: Vuosi | C3: Sija | D3: Seura | E3: OTT | F3: KUN | G3: LÖI | H3: TOI | I3: KL | J3: 0 > 1 | K3: 1 > 2 | L3: 2 > 3 | M3: 3 > k | N3: KL-% | P3: LÖI | Q3: TOI | R3: L+T | S3: KL | U3: OTT | V3: KUN | W3: LÖI | X3: TOI | Y3: KL | Z3: KL-% | AB3: LÖI | AC3: TOI | AD3: L+T | AE3: KL | AG3: Puolivälierät | AH3: Välierät | AI3: Pronssi | AJ3: Finaalit | AL3: IL | AM3: LL | AN3: Cup | AO3: K | AP3: H | AQ3: P
B4: 1982 | C4: 6. | D4: NJ | F4: ykkössarja
B5: 1983 | C5: 5. | D5: NJ | F5: ykkössarja
B6: 1984 | C6: 4. | D6: NJ | F6: ykkössarja
B7: 1985 | C7: 12. | D7: NJ | E7: 20 | F7: 0 | G7: 2 | H7: 4 | I7: 39 | J7: 9 | K7: 22 | L7: 6 | M7: 2 | N7: 43.3 %
B8: 1986 | C8: 3. | D8: NJ | F8: ykkössarja
B9: 1987 | C9: 12. | D9: NJ | E9: 22 | F9: 0 | G9: 5 | H9: 15 | I9: 96 | J9: 29 | K9: 38 | L9: 24 | M9: 5 | N9: 54.2 %
B10: 1988 | C10: 3. | D10: KaMa | E10: 22 | F10: 1 | G10: 15 | H10: 18 | I10: 88 | J10: 28 | K10: 30 | L10: 14 | M10: 16 | N10: 49.7 % | U10: 6 | V10: 0 | W10: 3 | X10: 4 | Y10: 28 | Z10: 53.8 % | AG10: 2-0 Tahko | AH10: 0-2 AA | AI10: 12-3 KiU | AM10: 1 | AQ10: 1
B11: 1989 | C11: 4. | D11: VM | E11: 22 | F11: 0 | G11: 5 | H11: 11 | I11: 69 | J11: 21 | K11: 25 | L11: 18 | M11: 5 | N11: 47.9 % | U11: 6 | V11: 0 | W11: 1 | X11: 3 | Y11: 18 | Z11: 45.0 % | AG11: 0-2 KiU | AM11: 1
B12: 1990 | C12: 7. | D12: VM | E12: 26 | F12: 0 | G12: 4 | H12: 19 | I12: 90 | J12: 35 | K12: 32 | L12: 19 | M12: 4 | N12: 46.6 % | U12: 2 | V12: 0 | W12: 0 | X12: 0 | Y12: 5 | Z12: 71.4 % | AG12: 2-0 KaMa | AH12: 0-2 IPV | AI12: 9-29 Tahko
B13: 1991 | C13: 12. | D13: VM | E13: 26 | F13: 0 | G13: 4 | H13: 15 | I13: 95 | J13: 41 | K13: 31 | L13: 19 | M13: 4 | N13: 52.5 %
B14: 1992 | C14: 14. | D14: VM | E14: 26 | F14: 0 | G14: 7 | H14: 25 | I14: 117 | J14: 35 | K14: 49 | L14: 26 | M14: 7 | N14: 57.6 %
B15: 1993 | C15: 3. | D15: VM | F15: ykköspesis
B16: 1994 | C16: 1. | D16: VM | F16: ykköspesis
B17: 1995 | C17: 13. | D17: VM | F17: ykköspesis
B18: Yhteensä | E18: 164 | F18: 1 | G18: 42 | H18: 107 | I18: 594 | J18: 198 | K18: 227 | L18: 126 | M18: 43 | N18: 51.0 % | P18: 0-0-0 | Q18: 0-0-0 | R18: 0-0-0 | S18: 0-0-0 | U18: 14 | V18: 0 | W18: 4 | X18: 7 | Y18: 51 | Z18: 51.5 % | AB18: 0-0-0 | AC18: 0-0-0 | AD18: 0-0-0 | AE18: 0-0-0 | AG18: 2/3 | AH18: 0/2 | AI18: 1/2 | AJ18: 0/0 | AL18: 0 | AM18: 2 | AN18: 0 | AO18: 0 | AP18: 0 | AQ18: 1
AG19: 66.7 % | AH19: 0.0 % | AI19: 50.0 % | AJ19: 0.0 %
B20: Pesispörssi | D20: 453.3
B22: URA SUPERISSA | E22: OTT | F22: KUN | G22: LÖI | H22: TOI | I22: KL | K22: ka/L | L22: ka/T | M22: ka/KL | N22: KL-% | P22: ENSIMMÄISET RUNKOSARJASSA | AG22: ENSIMMÄISET PUDOTUSPELEISSÄ | AL22: YLEISÖ
B23: Runkosarja | E23: 164 | F23: 1 | G23: 42 | H23: 107 | I23: 594 | K23: 0.26 | L23: 0.65 | M23: 3.62 | N23: 51.0 % | P23: Ottelu | R23: 05.05. 1985 NJ - KiU 2-5 | X23: 1. ottelu | Z23: 21 v 1 kk 5 pv | AG23: Ottelu | AH23: 1. 04.08. 1988 KaMa - Tahko 5-4 | AL23: 2460 | AN23: 24 v 4 kk 4 pv
B24: Ylempi loppusarja | E24: 14 | F24: 0 | G24: 4 | H24: 7 | I24: 51 | K24: 0.29 | L24: 0.50 | M24: 3.64 | N24: 51.5 % | P24: Lyöty | R24: 07.07. 1985 NJ - IPV 8-4 | X24: 12. ottelu | Z24: 21 v 3 kk 7 pv | AG24: Lyöty | AH24: 2. 07.08. 1988 Tahko - KaMa 1-8 | AL24: 3309 | AN24: 24 v 4 kk 7 pv
B25: Alempi loppusarja | E25: 35 | F25: 1 | G25: 9 | H25: 33 | I25: 181 | K25: 0.29 | L25: 0.94 | M25: 5.17 | N25: 66.3 % | P25: Tuotu | R25: 12.05. 1985 KPL - NJ 6-4 | X25: 2. ottelu | Z25: 21 v 1 kk 12 pv | AG25: Tuotu | AH25: 1. 04.08. 1988 KaMa - Tahko 5-4 | AL25: 2460 | AN25: 24 v 4 kk 4 pv
B26: KAIKKI | E26: 213 | F26: 2 | G26: 55 | H26: 147 | I26: 826 | K26: 0.27 | L26: 0.69 | M26: 3.88 | N26: 53.7 % | P26: Kunnari | AG26: Kunnari
B28: Seurat | D28: NJ = Nurmon Jymy (1925)
D29: KaMa = Kankaanpään Maila (1958)
D30: VM = Vaasan Maila (1933)

Sheet MYP, MSS
B1: Pekka Kujala | E1: 31.3.1964
B2: YKKÖSPESIS | E2: Runkosarja | L2: Runkosarja TOP-10 | Q2: Jatkosarjat | X2: SUOMENSARJA | AA2: Runkosarja | AH2: Runkosarja TOP-10 | AM2: Jatkosarjat
B3: Vuosi | C3: Sija | D3: Seura | E3: OTT | F3: KUN | G3: LÖI | H3: TOI | I3: KL | J3: KL-% | L3: LÖI | M3: TOI | N3: L+T | O3: KL | Q3: OTT | R3: KUN | S3: LÖI | T3: TOI | U3: KL | V3: KL-% | X3: Vuosi | Y3: Sija | Z3: Seura | AA3: OTT | AB3: KUN | AC3: LÖI | AD3: TOI | AE3: KL | AF3: KL-% | AH3: LÖI | AI3: TOI | AJ3: L+T | AK3: KL | AM3: OTT | AN3: KUN | AO3: LÖI | AP3: TOI | AQ3: KL | AR3: KL-%
B4: 1982 | C4: 6. | D4: NJ | E4: 1 | F4: 0 | G4: 0 | H4: 0 | Q4: 3 | R4: 0 | S4: 0 | T4: 1
B5: 1983 | C5: 5. | D5: NJ | E5: 10 | F5: 0 | G5: 3 | H5: 11 | M5: 10. | Q5: 10 | R5: 1 | S5: 4 | T5: 11
B6: 1984 | C6: 4. | D6: NJ | E6: 9 | F6: 0 | G6: 7 | H6: 8 | Q6: 10 | R6: 1 | S6: 5 | T6: 14
B8: 1986 | C8: 3. | D8: NJ | E8: 22 | F8: 1 | G8: 8 | H8: 18
B10: 1993 | C10: 3. | D10: VM | E10: 26 | F10: 1 | G10: 5 | H10: 51 | I10: 151 | M10: 4. | O10: 10.
B11: 1994 | C11: 1. | D11: VM | E11: 14 | F11: 1 | G11: 3 | H11: 26 | I11: 78
B12: 1995 | C12: 13. | D12: VM | E12: 24 | F12: 0 | G12: 8 | H12: 21 | I12: 130
B13: YHTEENSÄ | E13: =SUM(E4:E12) -> 106 | F13: =SUM(F4:F12) -> 3 | G13: =SUM(G4:G12) -> 34 | H13: =SUM(H4:H12) -> 135 | I13: =SUM(I4:I12) -> 359 | J13: 0.0 % | K13: =SUM(K4:K12) -> 0 | Q13: =SUM(Q4:Q12) -> 23 | R13: =SUM(R4:R12) -> 2 | S13: =SUM(S4:S12) -> 9 | T13: =SUM(T4:T12) -> 26 | U13: =SUM(U4:U12) -> 0 | V13: 0.0 % | W13: =SUM(W4:W12) -> 0 | X13: YHTEENSÄ | AA13: =SUM(AA4:AA12) -> 0 | AB13: =SUM(AB4:AB12) -> 0 | AC13: =SUM(AC4:AC12) -> 0 | AD13: =SUM(AD4:AD12) -> 0 | AE13: =SUM(AE4:AE12) -> 0 | AF13: =PRODUCT(AE13/AG13) ->  | AG13: =SUM(AG4:AG12) -> 0 | AM13: =SUM(AM4:AM12) -> 0 | AN13: =SUM(AN4:AN12) -> 0 | AO13: =SUM(AO4:AO12) -> 0 | AP13: =SUM(AP4:AP12) -> 0 | AQ13: =SUM(AQ4:AQ12) -> 0 | AR13: 0.0 % | AS13: =SUM(AS4:AS12) -> 0
B15: KAIKKI OTTELUT | E15: OTT | F15: KUN | G15: LÖI | H15: TOI | I15: KL | J15: KL-% | L15: ka/L | M15: ka/T | N15: ka/l+t | O15: ka/kl | R15: Seurat | T15: NJ = Nurmon Jymy (1925)
B16: SUPERPESIS | E16: 213 | F16: 2 | G16: 55 | H16: 147 | I16: 826 | J16: 53.7 % | K16: =PRODUCT(I16/J16) -> 1538.175047 | L16: =PRODUCT((F16+G16)/E16) -> 0.27 | M16: =PRODUCT(H16/E16) -> 0.69 | N16: =PRODUCT((F16+G16+H16)/E16) -> 0.96 | O16: =PRODUCT(I16/E16) -> 3.88 | T16: KaMa = Kankaanpään Maila (1958)
B17: YKKÖSPESIS | E17: =PRODUCT(E13+Q13) -> 129 | F17: =PRODUCT(F13+R13) -> 5 | G17: =PRODUCT(G13+S13) -> 43 | H17: =PRODUCT(H13+T13) -> 161 | I17: =PRODUCT(I13+U13) -> 359 | J17: 0.0 % | K17: =PRODUCT(K13+W13) -> 0 | L17: =PRODUCT((F17+G17)/E17) -> 0.37 | M17: =PRODUCT(H17/E17) -> 1.25 | N17: =PRODUCT((F17+G17+H17)/E17) -> 1.62 | O17: =PRODUCT(I17/64) -> 5.61 | T17: VM = Vaasan Maila (1933)
B18: SUOMENSARJA | E18: =PRODUCT(AA13+AM13) -> 0 | F18: =PRODUCT(AB13+AN13) -> 0 | G18: =PRODUCT(AC13+AO13) -> 0 | H18: =PRODUCT(AD13+AP13) -> 0 | I18: =PRODUCT(AE13+AQ13) -> 0 | J18: 0.0 % | K18: =PRODUCT(AG13+AS13) -> 0 | L18: 0.00 | M18: 0.00 | N18: 0.00 | O18: 0.00
B19: YHTEENSÄ | E19: =SUM(E16:E18) -> 342 | F19: =SUM(F16:F18) -> 7 | G19: 98 | H19: 308 | I19: 1185 | J19: 53.7 % | K19: =SUM(K16:K18) -> 1538.175047 | L19: =PRODUCT((F19+G19)/E19) -> 0.31 | M19: =PRODUCT(H19/E19) -> 0.90 | N19: =PRODUCT((F19+G19+H19)/E19) -> 1.21 | O19: =PRODUCT(I19/277) -> 4.28

Sheet Arvo-ottelut
B1: ITÄ - LÄNSI - KORTTI
B2: Pekka Kujala | C2: 31.3.1964
B3: B-POJAT | C3: Itä - Länsi, tulos | D3: Joukkue | E3: Seura | G3: V | H3: T | I3: H | J3: Up. | K3: Lj. | L3: Palk. | M3: O | N3: K | O3: L | P3: T | Q3: KL | R3: 1 | S3: 2 | T3: 3 | U3: k | V3: KL-% | W3: Pelinjohtaja | X3: Yleisöä
B4: 12.07. 1980 Kajaani | C4: 8-13 | D4: Länsi | E4: NJ | I4: 1 | J4: 2v | K4: 8 | M4: 1 | P4: 1 | W4: Seppo Mustonen | X4: 106
B5: 25.07. 1981 Toholampi | C5: 5-10 | D5: Länsi | E5: NJ | I5: 1 | J5: 2v | K5: 2 | M5: 1 | P5: 1 | W5: Oiva Lilli
B6: Yhteensä | I6: 2 | M6: 2 | P6: 2
B8: A-POJAT | C8: Itä - Länsi, tulos | D8: Joukkue | E8: Seura | G8: V | H8: T | I8: H | J8: Up. | K8: Lj. | L8: Palk. | M8: O | N8: K | O8: L | P8: T | Q8: KL | R8: 1 | S8: 2 | T8: 3 | U8: k | V8: KL-% | W8: Pelinjohtaja | X8: Yleisöä
B9: 23.07. 1983 Hamina | C9: 5-9 | D9: Länsi | E9: NJ | G9: 1 | J9: 2v | K9: 3 | L9: II p | M9: 1 | O9: 3 | P9: 2 | Q9: 9/10 | R9: 2/2 | S9: 4/5 | U9: 3/3 | V9: 90.0 % | W9: Ari Skyttä | X9: 1520
B11: LIITTO - LEHDISTÖ - KORTTI
B12: Pekka Kujala | C12: 31.3.1964
B13: MIEHET | C13: Tulos | D13: Joukkue | E13: Seura | G13: V | H13: T | I13: H | J13: Up. | K13: Lj. | L13: Palk. | M13: O | N13: K | O13: L | P13: T | Q13: KL | R13: 1 | S13: 2 | T13: 3 | U13: k | V13: KL-% | W13: Pelinjohtaja | X13: Yleisöä
B14: 17.06. 1988 Pihtipudas | C14: 10-22 | D14: Lehdistö | E14: KaMa | G14: 1 | J14: 2v | K14: 9 | M14: 1 | O14: 1 | P14: 1 | Q14: 3/6 | R14: 2/2 | T14: 0/1 | U14: 1/3 | V14: 50.0 % | W14: Pekka Peltomäki | X14: 1506
B15: 08.06. 1989 Tampere | C15: 4-6 | D15: Lehdistö | E15: VM | G15: 1 | K15: jok | M15: 1 | Q15: 2/2 | S15: 1/1 | T15: 1/1 | V15: 100.0 % | W15: Aulis Väisänen | X15: 1110
B16: Yhteensä | G16: 2 | M16: 2 | O16: =SUM(O14:O14) -> 1 | P16: 1 | Q16: 5/8 | R16: 2/2 | S16: 1/1 | T16: 1/2 | U16: 1/3 | V16: 62.5 %
B17: Ikä ensimmäisessä ottelussa | C17: 24 v 2 kk 17 pv

Sheet Kärkilyönnit
B1: KÄRKILYÖNNIT RUNKOSARJASSA | V1: VUOSITTAISET SIJOITUKSET TOP - 30
G2: 0 > 1 | J2: 1 > 2 | M2: 2 > 3 | P2: 3 > k | S2: Yhteensä
B3: Vuosi | C3: Sija | D3: Seura | E3: OTT | F3: KL | G3: YHT | H3: % | I3: KL | J3: YHT | K3: % | L3: KL | M3: YHT | N3: % | O3: KL | P3: YHT | Q3: % | R3: KL | S3: YHT | T3: % | V3: Vuosi | W3: Sija | X3: Seura | Y3: 0 > 1 | Z3: 1 > 2 | AA3: 2 > 3 | AB3: 3 > k | AC3: KL
B4: 1985 | C4: 12. | D4: NJ | E4: 20 | F4: 9 | G4: 23 | H4: =PRODUCT(F4/G4) -> 39.1 % | I4: 22 | J4: 33 | K4: =PRODUCT(I4/J4) -> 66.7 % | L4: 6 | M4: 22 | N4: =PRODUCT(L4/M4) -> 27.3 % | O4: 2 | P4: 12 | Q4: =PRODUCT(O4/P4) -> 16.7 % | R4: 39 | S4: =PRODUCT(G4+J4+M4+P4) -> 90 | T4: 43.3 % | V4: 1985 | W4: 12. | X4: NJ
B5: 1986 | V5: 1986
B6: 1987 | C6: 10. | D6: NJ | E6: 22 | F6: 29 | I6: 38 | L6: 24 | O6: 5 | R6: =PRODUCT(F6+I6+L6+O6) -> 96 | S6: 177 | T6: =PRODUCT(R6/S6) -> 54.2 % | V6: 1987 | W6: 10. | X6: NJ | Z6: 18.
B7: 1988 | C7: 2. | D7: KaMa | E7: 22 | F7: 28 | G7: 57 | H7: =PRODUCT(F7/G7) -> 49.1 % | I7: 30 | J7: 46 | K7: =PRODUCT(I7/J7) -> 65.2 % | L7: 14 | M7: 34 | N7: =PRODUCT(L7/M7) -> 41.2 % | O7: 16 | P7: 40 | Q7: =PRODUCT(O7/P7) -> 40.0 % | R7: =PRODUCT(F7+I7+L7+O7) -> 88 | S7: 177 | T7: 49.7 % | V7: 1988 | W7: 2. | X7: KaMa | Y7: 30.
B8: 1989 | C8: 6. | D8: VM | E8: 22 | F8: 21 | I8: 25 | L8: 18 | O8: 5 | R8: =PRODUCT(F8+I8+L8+O8) -> 69 | S8: 144 | T8: =PRODUCT(R8/S8) -> 47.9 % | V8: 1989 | W8: 6. | X8: VM
B9: 1990 | C9: 6. | D9: VM | E9: 26 | F9: 35 | G9: 70 | H9: =PRODUCT(F9/G9) -> 50.0 % | I9: 32 | J9: 58 | K9: =PRODUCT(I9/J9) -> 55.2 % | L9: 19 | M9: 42 | N9: =PRODUCT(L9/M9) -> 45.2 % | O9: 4 | P9: 23 | Q9: =PRODUCT(O9/P9) -> 17.4 % | R9: 90 | S9: 193 | T9: =PRODUCT(R9/S9) -> 46.6 % | V9: 1990 | W9: 6. | X9: VM
B10: 1991 | C10: 13. | D10: VM | E10: 26 | F10: 41 | G10: 73 | H10: =PRODUCT(F10/G10) -> 56.2 % | I10: 31 | J10: 59 | K10: =PRODUCT(I10/J10) -> 52.5 % | L10: 19 | M10: 36 | N10: =PRODUCT(L10/M10) -> 52.8 % | O10: 4 | P10: 13 | Q10: =PRODUCT(O10/P10) -> 30.8 % | R10: =PRODUCT(F10+I10+L10+O10) -> 95 | S10: 181 | T10: =PRODUCT(R10/S10) -> 52.5 % | V10: 1991 | W10: 13. | X10: VM | Y10: 28.
B11: 1992 | C11: 14. | D11: VM | E11: 26 | F11: 35 | G11: 58 | H11: =PRODUCT(F11/G11) -> 60.3 % | I11: 49 | J11: 77 | K11: =PRODUCT(I11/J11) -> 63.6 % | L11: 26 | M11: 46 | N11: =PRODUCT(L11/M11) -> 56.5 % | O11: 7 | P11: 22 | Q11: =PRODUCT(O11/P11) -> 31.8 % | R11: 117 | S11: 203 | T11: 57.6 % | V11: 1992 | W11: 14. | X11: VM | Z11: 19.
B12: Yhteensä | E12: =SUM(E4:E11) -> 164 | F12: =SUM(F4:F11)-50 -> 148 | G12: =SUM(G4:G11) -> 281 | H12: =PRODUCT(F12/G12) -> 52.7 % | I12: =SUM(I4:I11)-63 -> 164 | J12: =SUM(J4:J11) -> 273 | K12: =PRODUCT(I12/J12) -> 60.1 % | L12: =SUM(L4:L11)-42 -> 84 | M12: =SUM(M4:M11) -> 180 | N12: =PRODUCT(L12/M12) -> 46.7 % | O12: =SUM(O4:O11)-10 -> 33 | P12: =SUM(P4:P11) -> 110 | Q12: =PRODUCT(O12/P12) -> 30.0 % | R12: =SUM(R4:R11) -> 594 | S12: =SUM(S4:S11) -> 1165 | T12: =PRODUCT(R12/S12) -> 51.0 %
B14: KÄRKILYÖNNIT YLEMMISSÄ PUDOTUSPELEISSÄ | V14: VUOSITTAISET SIJOITUKSET TOP - 30
G15: 0 > 1 | J15: 1 > 2 | M15: 2 > 3 | P15: 3 > k | S15: Yhteensä
B16: Vuosi | C16: Sija | D16: Seura | E16: OTT | F16: KL | G16: YHT | H16: % | I16: KL | J16: YHT | K16: % | L16: KL | M16: YHT | N16: % | O16: KL | P16: YHT | Q16: % | R16: KL | S16: YHT | T16: % | V16: Vuosi | W16: Sija | X16: Seura | Y16: 0 > 1 | Z16: 1 > 2 | AA16: 2 > 3 | AB16: 3 > k | AC16: KL
B17: 1985 | C17: 12. | D17: NJ | V17: 1985 | W17: 12. | X17: NJ
B18: 1986 | V18: 1986
B19: 1987 | C19: 12. | D19: NJ | V19: 1987 | W19: 12. | X19: NJ
B20: 1988 | C20: 3. | D20: KaMa | E20: 6 | F20: 8 | G20: 13 | H20: 61.5 % | I20: 11 | J20: 19 | K20: 57.9 % | L20: 6 | M20: 12 | N20: 50.0 % | O20: 3 | P20: 8 | Q20: 37.5 % | R20: 28 | S20: 52 | T20: 53.8 % | V20: 1988 | W20: 3. | X20: KaMa | Y20: 12. | Z20: 7. | AA20: 15. | AB20: 17. | AC20: 12.
B21: 1989 | C21: 4. | D21: VM | E21: 6 | F21: 10 | G21: 14 | H21: 71.4 % | I21: 5 | J21: 11 | K21: 45.5 % | L21: 2 | M21: 10 | N21: 20.0 % | O21: 1 | P21: 5 | Q21: 20.0 % | R21: 18 | S21: 40 | T21: 45.0 % | V21: 1989 | W21: 4. | X21: VM | Y21: 10. | AC21: 30.
B22: 1990 | C22: 7. | D22: VM | E22: 2 | F22: 3 | G22: 3 | H22: 100.0 % | I22: 1 | J22: 2 | K22: 50.0 % | L22: 1 | M22: 1 | N22: 100.0 % | O22: 0 | P22: 1 | Q22: 0.0 % | R22: 5 | S22: 7 | T22: 71.4 % | V22: 1990 | W22: 7. | X22: VM
B23: 1991 | C23: 12. | D23: VM | V23: 1991 | W23: 12. | X23: VM
B24: 1992 | C24: 14. | D24: VM | V24: 1992 | W24: 14. | X24: VM
B25: Yhteensä | E25: =SUM(E15:E24) -> 14 | F25: =SUM(F17:F24) -> 21 | G25: =SUM(G17:G24) -> 30 | H25: =PRODUCT(F25/G25) -> 70.0 % | I25: =SUM(I17:I24) -> 17 | J25: =SUM(J17:J24) -> 32 | K25: =PRODUCT(I25/J25) -> 53.1 % | L25: =SUM(L17:L24) -> 9 | M25: =SUM(M17:M24) -> 23 | N25: =PRODUCT(L25/M25) -> 39.1 % | O25: =SUM(O17:O24) -> 4 | P25: =SUM(P17:P24) -> 14 | Q25: =PRODUCT(O25/P25) -> 28.6 % | R25: =SUM(R17:R24) -> 51 | S25: =SUM(S17:S24) -> 99 | T25: =PRODUCT(R25/S25) -> 51.5 %
B27: KÄRKILYÖNNIT
G28: 0 > 1 | J28: 1 > 2 | M28: 2 > 3 | P28: 3 > k | S28: Yhteensä
E29: OTT | F29: KL | G29: YHT | H29: % | I29: KL | J29: YHT | K29: % | L29: KL | M29: YHT | N29: % | O29: KL | P29: YHT | Q29: % | R29: KL | S29: YHT | T29: %
B30: RUNKOSARJA | E30: =PRODUCT(E12) -> 164 | F30: =PRODUCT(F12) -> 148 | G30: =PRODUCT(G12) -> 281 | H30: =PRODUCT(H12) -> 52.7 % | I30: =PRODUCT(I12) -> 164 | J30: =PRODUCT(J12) -> 273 | K30: =PRODUCT(K12) -> 60.1 % | L30: =PRODUCT(L12) -> 84 | M30: =PRODUCT(M12) -> 180 | N30: =PRODUCT(N12) -> 46.7 % | O30: =PRODUCT(O12) -> 33 | P30: =PRODUCT(P12) -> 110 | Q30: =PRODUCT(Q12) -> 30.0 % | R30: =PRODUCT(R12) -> 594 | S30: =PRODUCT(S12) -> 1165 | T30: =PRODUCT(T12) -> 51.0 %
B31: PLAY OFF | E31: =PRODUCT(E25) -> 14 | F31: =PRODUCT(F25) -> 21 | G31: 30 | H31: 70.0 % | I31: 17 | J31: 32 | K31: 53.1 % | L31: 9 | M31: 23 | N31: 39.1 % | O31: 4 | P31: 14 | Q31: 28.6 % | R31: 51 | S31: 99 | T31: 51.5 %
